Workbook

Sheet Prob 1
A1: Annual Investment | B1: 5500
A2: Number of Years | B2: 35
A3: Payments per Year | B3: 1
A5: Fund | B5: Rate of Return | C5: Terminal Value
A6: Money Market | B6: 0.01 | C6: =FV(B6/$B$3,$B$2*$B$3,-$B$1/$B$3) -> 229131.5158
A7: Long-Term Bond | B7: 0.045 | C7: =FV(B7/$B$3,$B$2*$B$3,-$B$1/$B$3) -> 448231.399
A8: Conservative Stock | B8: 0.065 | C8: =FV(B8/$B$3,$B$2*$B$3,-$B$1/$B$3) -> 682190.7964
A9: Aggressive Stock | B9: 0.11 | C9: =FV(B9/$B$3,$B$2*$B$3,-$B$1/$B$3) -> 1878742.551

Sheet Scenario Summary
B2: Scenario Summary
D3: Annual Investment | E3: Quarterly Investment | F3: Monthly Investment | G3: Bi-Weekly Investment | H3: Weekly Investment
D4: Created by Timothy R. Mayes, Ph.D. on 3/16/2014 | E4: Created by Timothy R. Mayes, Ph.D. on 3/16/2014 | F4: Created by Timothy R. Mayes, Ph.D. on 3/16/2014 | G4: Created by Timothy R. Mayes, Ph.D. on 3/16/2014 | H4: Created by Timothy R. Mayes, Ph.D. on 3/16/2014
B5: Changing Cells:
C6: Payments_per_Year | D6: 1 | E6: 4 | F6: 12 | G6: 26 | H6: 52
B7: Result Cells:
C8: Money_Market | D8: 229131.5158 | E8: 230146.3311 | F8: 230373.4022 | G8: 230434.6342 | H8: 230460.8891
C9: Long_term_Bond | D9: 448231.399 | E9: 463032.6294 | F9: 466465.0635 | G9: 467398.491 | H9: 467799.754
C10: Conservative_Stock | D10: 682190.7964 | E10: 723600.7891 | F10: 733478.254 | G10: 736182.6517 | H10: 737347.6386
C11: Aggessive_Stock | D11: 1878742.551 | E11: 2180623.54 | F11: 2258802.502 | G11: 2280648.125 | H11: 2290117.975
B12: Notes: Current Values column represents values of changing cells at
B13: time Scenario Summary Report was created. Changing cells for each
B14: scenario are highlighted in gray.

Sheet Prob 2
A1: Parts A & B
B2: Req. Ret. | C2: 0.07
B4: Period | C4: Cash Flow | D4: Cash Flow
B5: 1 | C5: 45000 | D5: =C9 -> 25000 | M5: Change in Cash Flow | N5: -5000
B6: 2 | C6: =C5+$N$5 -> 40000 | D6: =C8 -> 30000
B7: 3 | C7: =C6+$N$5 -> 35000 | D7: =C7 -> 35000
B8: 4 | C8: =C7+$N$5 -> 30000 | D8: =C6 -> 40000
B9: 5 | C9: =C8+$N$5 -> 25000 | D9: =C5 -> 45000
B10: PV | C10: =NPV($C$2,C5:C9) -> 146275.5604 | D10: =NPV($C$2,D5:D9) -> 140738.2601
B11: FV | C11: =FV($C$2,COUNT(C5:C9),,-C10) -> 205159.0404 | D11: =FV($C$2,COUNT(D5:D9),,-D10) -> 197392.6903
A13: Part C
B14: Period | C14: Cash Flow | D14: Cash Flow
B15: 0 | C15: -130000 | D15: =C15 -> -130000
B16: 1 | C16: =C5 -> 45000 | D16: =D5 -> 25000
B17: 2 | C17: =C6 -> 40000 | D17: 30000
B18: 3 | C18: 35000 | D18: 35000
B19: 4 | C19: 30000 | D19: 40000
B20: 5 | C20: 25000 | D20: 45000
B21: IRR | C21: =IRR(C15:C20) -> 0.1207911317 | D21: =IRR(D15:D20) -> 0.09748128792

Sheet Prob 3
A1: Cost of College Today | B1: 18391 | F1: Time Line When Cash Flows Start in Period 1
A2: Annual Rate of Increase | B2: 0.032 | F2: Period | G2: Cash Flow | H2: Cash Flow | I2: Cash Flow | J2: Cash Flow | K2: Cash Flow
A3: Annual Cost of College | B3: =B1*(1+B2)^B5 -> 27697.55345 | F3: 1 | G3: 0 | H3: =$B$12 -> 5055.824024 | I3: =$B$13 -> 3728.873855 | J3: =$B$14 -> 4304.541322 | K3: =$B$15 -> 3174.772602
A4: Annual Rate of Return | B4: 0.08 | F4: 2 | G4: 0 | H4: 5055.824024 | I4: =$B$13 -> 3728.873855 | J4: 4304.541322 | K4: 3174.772602
A5: Years until college | B5: 13 | F5: 3 | G5: 0 | H5: 5055.824024 | I5: 3728.873855 | J5: 4304.541322 | K5: 3174.772602
A6: Years in College | B6: 4 | F6: 4 | G6: 0 | H6: 5055.824024 | I6: 3728.873855 | J6: 4304.541322 | K6: 3174.772602
A7: Inheritance | B7: 10000 | F7: 5 | G7: 0 | H7: 5055.824024 | I7: 3728.873855 | J7: 4304.541322 | K7: 3174.772602
F8: 6 | G8: 0 | H8: 5055.824024 | I8: 3728.873855 | J8: 4304.541322 | K8: 3174.772602
A9: Assuming First Cash Flow in Period 1 | F9: 7 | G9: 0 | H9: 5055.824024 | I9: 3728.873855 | J9: 4304.541322 | K9: 3174.772602
A10: Amount needed in 12 years | B10: =-PV((1+B4)/(1+B2)-1,B6,B3)/(1+B2) -> 95945.01187 | F10: 8 | G10: 0 | H10: 5055.824024 | I10: 3728.873855 | J10: 4304.541322 | K10: 3174.772602
A11: Lump sum required today | B11: =PV(B4,B5-1,,-B10) -> 38101.08429 | F11: 9 | G11: 0 | H11: 5055.824024 | I11: 3728.873855 | J11: 4304.541322 | K11: 3174.772602
A12: Annual investment required (ending in year 12) | B12: =PMT(B4,B5-1,,-B10) -> 5055.824024 | F12: 10 | G12: 0 | H12: 5055.824024 | I12: 3728.873855 | J12: 4304.541322 | K12: 3174.772602
A13: Annual investment with inheritance (ending in year 12) | B13: =PMT(B4,B5-1,B7,-B10) -> 3728.873855 | F13: 11 | G13: 0 | H13: 5055.824024 | I13: 3728.873855 | J13: 4304.541322 | K13: 3174.772602
A14: Annual investment required (ending in year 16) | B14: =PMT(B4,16,-B11) -> 4304.541322 | F14: 12 | G14: 0 | H14: 5055.824024 | I14: 3728.873855 | J14: 4304.541322 | K14: 3174.772602
A15: Annual investment with inheritance (ending in year 16) | B15: =PMT(B4,B5+B6-1,-(B11-B7)) -> 3174.772602 | F15: 13 | G15: =$B$3 -> 27697.55345 | H15: 0 | I15: 0 | J15: 4304.541322 | K15: 3174.772602
F16: 14 | G16: =G15*(1+$B$2) -> 28583.87516 | H16: 0 | I16: 0 | J16: 4304.541322 | K16: 3174.772602
F17: 15 | G17: =G16*(1+$B$2) -> 29498.55917 | H17: 0 | I17: 0 | J17: 4304.541322 | K17: 3174.772602
F18: 16 | G18: 30442.51306 | H18: 0 | I18: 0 | J18: 4304.541322 | K18: 3174.772602
F19: PV | G19: =NPV($B$4,G3:G18) -> 38101.08429 | H19: =NPV($B$4,H3:H18) -> 38101.08429 | I19: =NPV($B$4,I3:I18)+B7 -> 38101.08429 | J19: =NPV($B$4,J3:J18) -> 38101.08429 | K19: =NPV($B$4,K3:K18)+B7 -> 38101.08429
F23: Time Line When Cash Flows Start in Period 0
A24: Assuming First Cash Flow in Period 0 | F24: Period | G24: Cash Flow | H24: Cash Flow | I24: Cash Flow | J24: Cash Flow | K24: Cash Flow
A25: Amount needed in 13 years | B25: =-PV((1+B4)/(1+B2)-1,B6,B3,0,1) -> 103620.6128 | F25: 0 | G25: 0 | H25: =$B$27 -> 4463.535152 | I25: =$B$28 -> 3292.036955 | J25: =$B$29 -> 3985.686409 | K25: =$B$30 -> 2939.604261
A26: Lump sum required today | B26: =PV(B4,B5,,-B25) -> 38101.08429 | F26: 1 | G26: 0 | H26: 4463.535152 | I26: 3292.036955 | J26: 3985.686409 | K26: 2939.604261
A27: Annual investment required (ending in year 12) | B27: =PMT(B4,B5,,-B25,1) -> 4463.535152 | F27: 2 | G27: 0 | H27: 4463.535152 | I27: 3292.036955 | J27: 3985.686409 | K27: 2939.604261
A28: Annual investment with inheritance (ending in year 12) | B28: =PMT(B4,B5,B7,-B25,1) -> 3292.036955 | F28: 3 | G28: 0 | H28: 4463.535152 | I28: 3292.036955 | J28: 3985.686409 | K28: 2939.604261
A29: Annual investment required (ending in year 15) | B29: =PMT(B4,B5+B6-1,-B26,,1) -> 3985.686409 | F29: 4 | G29: 0 | H29: 4463.535152 | I29: 3292.036955 | J29: 3985.686409 | K29: 2939.604261
A30: Annual investment with inheritance (ending in year 16) | B30: =PMT(B4,B5+B6-1,-(B26-B7),,1) -> 2939.604261 | F30: 5 | G30: 0 | H30: 4463.535152 | I30: 3292.036955 | J30: 3985.686409 | K30: 2939.604261
F31: 6 | G31: 0 | H31: 4463.535152 | I31: 3292.036955 | J31: 3985.686409 | K31: 2939.604261
F32: 7 | G32: 0 | H32: 4463.535152 | I32: 3292.036955 | J32: 3985.686409 | K32: 2939.604261
F33: 8 | G33: 0 | H33: 4463.535152 | I33: 3292.036955 | J33: 3985.686409 | K33: 2939.604261
F34: 9 | G34: 0 | H34: 4463.535152 | I34: 3292.036955 | J34: 3985.686409 | K34: 2939.604261
F35: 10 | G35: 0 | H35: 4463.535152 | I35: 3292.036955 | J35: 3985.686409 | K35: 2939.604261
F36: 11 | G36: 0 | H36: 4463.535152 | I36: 3292.036955 | J36: 3985.686409 | K36: 2939.604261
F37: 12 | G37: 0 | H37: 4463.535152 | I37: 3292.036955 | J37: 3985.686409 | K37: 2939.604261
F38: 13 | G38: =$B$3 -> 27697.55345 | H38: 0 | I38: 0 | J38: 3985.686409 | K38: 2939.604261
F39: 14 | G39: =G38*(1+$B$2) -> 28583.87516 | H39: 0 | I39: 0 | J39: 3985.686409 | K39: 2939.604261
F40: 15 | G40: =G39*(1+$B$2) -> 29498.55917 | H40: 0 | I40: 0 | J40: 3985.686409 | K40: 2939.604261
F41: 16 | G41: 30442.51306 | H41: 0 | I41: 0 | J41: 0 | K41: 0
F42: PV | G42: =NPV($B$4,G25:G41)*(1+B4) -> 38101.08429 | H42: =NPV($B$4,H25:H41)*(1+B4) -> 38101.08429 | I42: =NPV($B$4,I25:I41)*(1+B4)+B7 -> 38101.08429 | J42: =NPV($B$4,J25:J41)*(1+B4) -> 38101.08429 | K42: =NPV($B$4,K25:K40)*(1+B4)+B7 -> 38101.08429

Sheet Prob 4
A1: Growth Rate | B1: 0.05
A2: Required Return | B2: 0.11
A3: Year 1 Rent | B3: 20000
A4: Years Stable Rent | B4: 3
A5: Years Growing Rent | B5: 7
A6: Year Sold | B6: 10
A7: Sale Price in 10 Years | B7: 300000
A8: Ask Price Today | B8: 200000
A10: A. | B10: Period | C10: Cash Flow
B11: 0 | C11: =-B8 -> -200000
B12: 1 | C12: =$B$3 -> 20000
B13: 2 | C13: =$B$3 -> 20000
B14: 3 | C14: 20000
B15: 4 | C15: =C14*(1+$B$1) -> 21000
B16: 5 | C16: 22050
B17: 6 | C17: 23152.5
B18: 7 | C18: 24310.125
B19: 8 | C19: 25525.63125
B20: 9 | C20: 26801.91281
B21: 10 | C21: =C20*(1+$B$1)+B7 -> 328142.0085
A23: B. | B23: Present Value | C23: =NPV(B2,C12:C21) -> 237000.9963
A24: C. | B24: Present Value | C24: =-PV(B2,B4,B3)-PV((1+B2)/(1+B1)-1,B5,B3*(1+B1))/(1+B1)/(1+B2)^B4-PV(B2,B6,0,B7) -> 237000.9963
B26: PV First 3 Years | C26: =PV(B2,B4,-C12) -> 48874.29431
B27: PV Next 7 Years | C27: =(-PV((1+B2)/(1+B1)-1,B5,C15)/(1+B1))/(1+B2)^B4 -> 82471.35833
B28: PV Lump Sum | C28: =-PV(B2,B6,0,B7) -> 105655.3436
B29: Total PV | C29: =SUM(C26:C28) -> 237000.9963
A31: D. | B31: Yield | C31: =IRR(C11:C21) -> 0.136922326

Sheet Prob 5
A1: Advertised Prize | B1: 105000000
A2: Number of Payments | B2: 30 | G2: Graduated Annuity Table
A3: Interest Rate | B3: 0.045 | G3: Disc Rate | H3: =B3 -> 0.045
G4: Growth | H4: 0.03
A5: As an Annuity Due | G5: Period | H5: Cash Flow
A6: Annual Payment | B6: =B1/B2 -> 3500000 | G6: 0 | H6: 2207022.229
A7: Cash Prize | B7: =PV(B3,B2,-B6,0,1) -> 59576609.85 | G7: 1 | H7: =H6*(1+$H$4) -> 2273232.895
G8: 2 | H8: =H7*(1+$H$4) -> 2341429.882
A9: As a Graduated Annuity Due | G9: 3 | H9: 2411672.779
A10: First Payment | B10: =H6 -> 2207022.229 | G10: 4 | H10: 2484022.962
A11: Cash Prize | B11: =-PV((1+H3)/(1+H4)-1,B2,B10,0,1) -> 54109905.67 | C11: 54109905.67 | G11: 5 | H11: 2558543.651
G12: 6 | H12: 2635299.961
G13: 7 | H13: 2714358.959
G14: 8 | H14: 2795789.728
G15: 9 | H15: 2879663.42
G16: 10 | H16: 2966053.323
G17: 11 | H17: 3055034.922
G18: 12 | H18: 3146685.97
G19: 13 | H19: 3241086.549
G20: 14 | H20: 3338319.146
G21: 15 | H21: 3438468.72
G22: 16 | H22: 3541622.782
G23: 17 | H23: 3647871.465
G24: 18 | H24: 3757307.609
G25: 19 | H25: 3870026.837
G26: 20 | H26: 3986127.642
G27: 21 | H27: 4105711.472
G28: 22 | H28: 4228882.816
G29: 23 | H29: 4355749.3
G30: 24 | H30: 4486421.779
G31: 25 | H31: 4621014.433
G32: 26 | H32: 4759644.866
G33: 27 | H33: 4902434.211
G34: 28 | H34: 5049507.238
G35: 29 | H35: 5200992.455
G37: PV | H37: =NPV(H3,H6:H35)*(1+H3) -> 54109905.67
G38: Sum of CF | H38: =SUM(H6:H35) -> 105000000
